bitfinex-derivatives/quotes_SOLF0:USTF0_20250831
["timestamp","ask_amount","ask_price","bid_price","bid_amount"]
[1756606530962,7.29,205.8,205.73,4.05]
[1756606533863,7.29,205.8,205.71,2.10609099]
[1756606534066,7.29,205.8,205.69,4.05]
[1756606534866,7.32178141,205.77,205.69,4.05]
[1756606538261,7.32178141,205.77,205.67,2.10609099]
[1756606538760,7.32178141,205.77,205.66,4.07]
[1756606539670,9.4278724,205.77,205.66,4.07]
[1756606542574,7.32178141,205.77,205.67,2.10609099]
[1756606542774,7.32178141,205.77,205.69,4.07]
[1756606543070,0.03178141,205.77,205.71,2.10609099]
[1756606543469,0.03178141,205.77,205.72,4.07]
[1756606543867,0.03178141,205.77,205.71,2.10609099]
[1756606544176,0.03178141,205.77,205.71,6.17609099]
[1756606544177,7.29178141,205.77,205.71,6.17609099]
[1756606544475,7.29178141,205.77,205.71,4.07]
[1756606546279,7.29178141,205.77,205.69,2.10609099]
[1756606550381,7.29178141,205.77,205.7,4.07]
[1756606562893,0.03178141,205.77,205.74,2.10609099]
[1756606563098,7.29178141,205.77,205.74,2.10609099]
[1756606563299,7.26,205.77,205.74,6.17609099]
[1756606563796,0.03627733,205.78,205.75,4.07]
[1756606563996,7.29627733,205.78,205.75,4.07]
[1756606565396,7.29627733,205.78,205.74,2.10609099]
[1756606565797,7.29627733,205.78,205.74,6.17609099]
[1756606566097,7.29627733,205.78,205.75,4.07]
[1756606567195,0.03627733,205.78,205.74,2.10609099]
[1756606568197,0.03627733,205.78,205.75,4.08]
[1756606569194,0.03627733,205.78,205.74,6.15012148]
[1756606569692,0.03627733,205.78,205.76,4.08]
[1756606569891,5.4415691,205.94,205.75,4.04403049]
[1756606569892,9.38609099,205.93,205.78,4.08]
[1756606570093,9.38609099,205.93,205.8,6.18609099]
[1756606570293,7.28,205.93,205.83,2.10609099]
[1756606571094,7.28,205.93,205.86,0.03509388]
[1756606572198,7.28,205.93,205.87,2.10609099]
[1756606574499,2.10609099,206.0,205.86,0.03509388]
[1756606574705,7.28,205.99,205.89,2.10609099]
[1756606575104,7.28,205.99,205.92,0.03133459]
[1756606575906,127.56,205.99,205.92,0.03133459]
[1756606581706,7.28,205.97,205.92,0.03133459]
[1756606582910,120.1,205.98,205.92,0.03133459]
[1756606583516,120.04,205.97,205.92,0.03133459]
[1756606584211,7.28,205.96,205.92,0.03133459]
[1756606584514,120.04,205.97,205.92,0.03133459]
[1756606584808,7.28,205.96,205.92,0.03133459]
[1756606585009,120.04,205.97,205.92,0.03133459]
[1756606585909,7.28,205.96,205.92,0.03133459]
[1756606586110,120.04,205.97,205.92,0.03133459]
[1756606586410,7.28,205.96,205.92,0.03133459]
[1756606587004,120.04,205.97,205.92,0.03133459]
[1756606587306,119.98,205.96,205.92,0.03133459]
[1756606587913,7.28,205.95,205.92,0.03133459]
[1756606588214,127.2,206.0,205.92,4.08133459]
[1756606590016,129.30609099,206.0,205.92,0.03133459]
[1756606593018,120.08,205.99,205.92,0.03133459]
[1756606593315,7.28,206.0,205.93,6.15609099]
[1756606593316,127.34,206.0,205.93,6.15609099]
[1756606593512,7.28,206.0,205.93,6.15609099]
[1756606593816,7.28,206.0,205.94,4.05]
[1756606594413,50.66,206.03,205.94,4.05]
[1756606594617,57.94,206.03,205.94,4.05]
[1756606595014,57.94,206.03,205.96,6.15609099]
[1756606595319,7.28,206.03,205.96,6.18754074]
[1756606598721,7.28,206.03,205.97,4.07]
[1756606599324,7.85,206.07,205.99,6.17609099]
[1756606599514,7.85,206.07,205.99,4.07]
[1756606599715,7.85,206.07,205.99,6.17609099]
[1756606600125,7.85,206.07,206.01,0.03591173]
[1756606605423,2.10609099,206.06,206.01,0.03591173]
[1756606605624,7.85,206.08,206.01,0.03591173]
[1756606605923,7.85,206.05,206.01,0.03591173]
[1756606611518,2.10609099,206.06,206.01,0.03591173]
[1756606611728,7.85,206.05,206.01,0.03591173]
[1756606612128,7.85,206.08,206.01,0.03591173]
[1756606615233,7.85,206.08,206.01,2.14200272]
[1756606615532,7.85,206.08,206.01,0.03591173]
[1756606620437,9.95609099,206.08,206.01,0.03591173]
[1756606621934,7.85,206.04,205.93,4.07]
[1756606622134,7.85,206.02,205.9,10.21604342]
[1756606622336,7.85,206.02,205.9,6.20609099]
[1756606622638,9.95609099,206.02,205.9,6.20609099]
[1756606623237,0.03637217,205.98,205.9,6.20609099]
[1756606623438,7.85,205.97,205.9,6.20609099]
[1756606623841,7.85,205.97,205.9,10.21604342]
[1756606624436,7.85,205.97,205.9,6.20609099]
[1756606624737,7.85,205.97,205.9,4.1]
[1756606626737,7.85,205.97,205.9,6.20609099]
[1756606627329,7.85,205.97,205.89,4.00995243]
[1756606627539,7.18,205.95,205.84,8.10995243]
[1756606627735,32.48,205.95,205.84,8.10995243]
[1756606627934,7.18,205.95,205.85,4.00995243]
[1756606628337,0.03445169,205.92,205.86,2.10609099]
[1756606628941,0.03445169,205.92,205.86,6.11604342]
[1756606630641,0.03445169,205.92,205.89,2.10609099]
[1756606630839,0.03445169,205.92,205.9,4.1]
[1756606631037,7.18,205.97,205.9,4.1]
[1756606631447,7.18,205.92,205.88,4.00995243]
[1756606631644,0.03322444,205.93,205.87,4.00995243]
[1756606631844,0.03322444,205.93,205.86,2.10609099]
[1756606631845,7.21322444,205.93,205.86,6.11604342]
[1756606632537,0.03322444,205.93,205.87,8.10995243]
[1756606633448,0.03322444,205.93,205.88,4.1]
[1756606633648,0.03322444,205.93,205.9,4.1]
[1756606633849,0.03322444,205.93,205.89,2.10609099]
[1756606634045,0.03322444,205.93,205.9,4.1]
[1756606634246,0.03322444,205.93,205.89,2.10609099]
[1756606634546,7.18,205.92,205.86,4.00995243]
[1756606634743,7.18,205.92,205.84,4.1]
[1756606635447,7.18,205.92,205.83,4.00995243]
[1756606635647,9.28609099,205.92,205.82,4.00995243]
[1756606635849,9.28609099,205.92,205.81,4.00995243]
[1756606636450,7.18,205.88,205.81,4.00995243]
[1756606636951,7.18,205.88,205.81,4.05635602]
[1756606637253,7.18,205.88,205.82,4.1]
[1756606638444,7.18,205.88,205.77,8.15635602]
[1756606638648,7.18,205.84,205.73,4.1]
[1756606639047,7.18,205.81,205.73,4.1]
[1756606639251,7.21725966,205.81,205.73,4.1]
[1756606648754,0.03725966,205.81,205.74,4.08]
[1756606648957,0.03725966,205.81,205.76,2.10609099]
[1756606649364,0.03725966,205.81,205.77,4.08]
[1756606649658,0.03725966,205.81,205.78,4.08]
[1756606649858,0.03725966,205.81,205.77,2.10609099]
[1756606650259,0.03725966,205.81,205.78,4.08]
[1756606650459,0.03725966,205.81,205.77,2.10609099]
[1756606650861,0.03725966,205.81,205.78,4.08]
[1756606651562,0.03725966,205.81,205.78,2.10609099]
[1756606652661,0.03725966,205.81,205.79,4.08]
[1756606653060,0.03725966,205.81,205.78,2.10609099]
[1756606653761,0.03725966,205.81,205.79,4.08]
[1756606654457,0.03725966,205.81,205.78,2.10609099]
[1756606654656,0.03725966,205.81,205.79,4.08]
[1756606654856,0.03725966,205.81,205.78,2.10609099]
[1756606655758,7.18,205.92,205.79,4.08]
[1756606655965,7.18,205.92,205.84,4.04]
[1756606656161,7.18,205.92,205.86,6.14609099]
[1756606657163,7.18,205.97,205.87,0.0368095]
[1756606661665,7.18,205.97,205.87,2.14290049]
[1756606662577,7.18,205.97,205.9,2.10609099]
[1756606662774,7.18,205.97,205.88,6.18609099]
[1756606662975,7.18,205.97,205.85,6.18609099]
[1756606663476,7.18,205.97,205.9,0.03127371]
[1756606674581,7.19,205.94,205.9,0.03127371]
[1756606674783,7.19,205.92,205.9,0.03127371]
[1756606675373,7.19,205.92,205.81,6.18609099]
[1756606675776,9.29609099,205.92,205.81,6.18609099]
[1756606675979,9.29609099,205.92,205.81,4.08]
[1756606676175,9.29609099,205.92,205.78,2.10609099]
[1756606676382,9.29609099,205.92,205.79,4.11]
[1756606676574,9.29609099,205.92,205.79,6.21609099]
[1756606677078,7.19,205.87,205.79,6.21609099]
[1756606679481,7.19,205.87,205.79,4.11]
[1756606681089,0.03173543,205.88,205.77,2.10609099]
[1756606681090,7.19,205.85,205.77,2.10609099]
[1756606682591,7.19,205.85,205.75,4.11]
[1756606683005,0.03077516,205.82,205.77,2.10609099]
[1756606683199,0.03077516,205.82,205.81,4.11]
[1756606683904,2.10609099,205.96,205.81,4.59]
[1756606684101,2.10609099,205.96,205.84,6.21609099]
[1756606684102,34.09,205.95,205.84,6.21609099]
[1756606684499,34.09,205.95,205.84,4.11]
[1756606684802,34.09,205.95,205.84,6.21609099]
[1756606685103,34.09,205.95,205.87,0.03351823]
[1756606685503,7.19,205.93,205.87,0.03351823]
[1756606687402,2.10609099,205.91,205.87,0.03351823]
[1756606687600,7.24,205.9,205.87,0.03351823]
[1756606688901,9.34609099,205.9,205.87,0.03351823]
[1756606689201,9.82609099,205.9,205.87,0.03351823]
[1756606689806,9.34609099,205.9,205.77,6.20609099]
[1756606691107,7.27122648,205.86,205.77,6.20609099]
[1756606694598,7.27122648,205.86,205.77,4.1]
[1756606694805,7.27122648,205.86,205.77,6.20609099]
[1756606695109,7.27122648,205.86,205.77,2.10609099]
[1756606695407,7.27122648,205.86,205.78,4.14]
[1756606696005,7.27122648,205.86,205.76,4.05119773]
[1756606696006,0.03122648,205.86,205.81,4.14]
[1756606696209,0.03122648,205.86,205.8,6.24609099]
[1756606696605,0.03122648,205.86,205.8,4.14]
[1756606700218,0.03122648,205.86,205.83,4.14]
[1756606700918,0.03122648,205.86,205.82,2.10609099]
[1756606701517,0.03122648,205.86,205.83,4.14]
[1756606701719,0.03122648,205.86,205.82,2.10609099]
[1756606701919,0.03122648,205.86,205.83,4.13]
[1756606702115,0.03122648,205.86,205.82,2.10609099]
[1756606702323,0.03122648,205.86,205.83,4.13]
[1756606702711,0.03122648,205.86,205.82,2.10609099]
[1756606703118,0.03122648,205.86,205.83,4.13]
[1756606703824,0.03122648,205.86,205.82,2.10609099]
[1756606704020,0.03122648,205.86,205.83,4.13]
[1756606705224,0.03122648,205.86,205.82,4.13]
[1756606705521,7.27122648,205.86,205.82,4.13]
[1756606705717,0.03122648,205.86,205.81,4.13]
[1756606705924,0.03122648,205.86,205.8,6.15728872]
[1756606707021,0.03122648,205.86,205.81,4.13]
[1756606707622,0.03122648,205.86,205.8,2.10609099]
[1756606708023,0.03122648,205.86,205.81,4.13]
[1756606708219,0.03122648,205.86,205.8,6.15728872]
[1756606708526,0.03122648,205.86,205.81,4.13]
[1756606708919,0.03122648,205.86,205.8,6.15728872]
[1756606709114,0.03122648,205.86,205.81,4.13]
[1756606709520,0.03122648,205.86,205.8,8.18119773]
[1756606709926,0.03122648,205.86,205.8,4.13]
[1756606710324,7.24,205.85,205.77,4.05119773]
[1756606710525,7.24,205.85,205.76,10.28728872]
[1756606712323,7.24,205.85,205.76,4.13]
[1756606715529,7.24,205.85,205.74,4.05119773]
[1756606716734,7.24,205.81,205.74,4.05119773]
[1756606720727,7.24,205.81,205.72,6.23609099]
[1756606720728,7.24,205.81,205.72,8.18119773]
[1756606721323,7.24,205.81,205.72,4.13]
[1756606726343,7.24,205.81,205.71,2.10609099]
[1756606726536,7.24,205.81,205.69,4.05119773]
[1756606726736,7.24,205.81,205.72,4.15]
[1756606728435,0.0330902,205.79,205.72,4.15]
[1756606729639,7.9030902,205.79,205.72,4.15]
[1756606729845,7.9030902,205.79,205.69,4.15]
[1756606732437,10.00918119,205.79,205.69,4.15]
[1756606734246,10.00918119,205.79,205.66,4.15]
[1756606734648,9.97609099,205.79,205.66,4.15]
[1756606735343,7.87,205.74,205.66,4.15]
[1756606736348,0.03144363,205.75,205.65,6.15728872]
[1756606736349,0.03144363,205.75,205.69,4.15]
[1756606736947,7.90144363,205.75,205.69,4.15]
[1756606740846,7.90144363,205.75,205.66,4.15]
[1756606749055,2.10609099,205.73,205.6,6.15728872]
[1756606749255,7.94,205.72,205.61,4.16]
[1756606750456,7.97331075,205.69,205.61,4.16]
[1756606754761,7.97331075,205.69,205.58,8.21119773]
[1756606756858,10.07940174,205.69,205.58,8.21119773]
[1756606757153,10.07940174,205.69,205.58,4.16]
[1756606757360,10.07940174,205.69,205.58,8.21119773]
[1756606759364,0.03331075,205.69,205.61,4.16]
[1756606759564,0.03331075,205.69,205.63,2.10609099]
[1756606759765,7.94,205.73,205.64,4.16]
[1756606760066,0.03125122,205.68,205.64,4.16]
[1756606760361,0.03125122,205.68,205.63,2.10609099]
[1756606760564,0.03125122,205.68,205.64,4.16]
[1756606761368,0.03125122,205.68,205.63,2.10609099]
[1756606762167,0.03125122,205.68,205.64,4.14]
[1756606762464,0.03125122,205.68,205.67,4.14]
[1756606774185,0.03125122,205.68,205.67,8.19119773]
[1756606775883,0.03125122,205.68,205.67,4.14]
[1756606776286,0.03125122,205.68,205.67,8.19119773]
[1756606778087,0.03125122,205.68,205.67,4.14]
[1756606780086,0.03125122,205.68,205.67,8.22772658]
[1756606782688,0.03125122,205.68,205.67,4.14]
[1756606782888,0.03125122,205.68,205.67,8.22772658]
[1756606784189,0.03125122,205.68,205.67,4.14]
[1756606792896,0.03125122,205.68,205.67,8.22657577]
[1756606794193,0.03125122,205.68,205.67,10.33266676]
[1756606794995,0.03125122,205.68,205.67,6.24609099]
[1756606799802,0.03125122,205.68,205.67,4.14]
[1756606800506,7.39125122,205.68,205.66,4.08779523]
[1756606800701,7.36,205.67,205.64,6.19388622]
[1756606800904,7.36,205.67,205.64,4.14]
[1756606801401,7.36,205.67,205.64,8.22779523]
[1756606803702,0.03125122,205.68,205.64,4.08779523]
[1756606803900,7.36,205.67,205.64,4.08779523]
[1756606804404,0.03125122,205.68,205.63,4.08779523]
[1756606805614,7.36,205.67,205.63,4.08779523]
[1756606805797,0.03125122,205.68,205.63,4.08779523]
[1756606806806,7.36,205.67,205.63,4.08779523]
[1756606807006,0.03125122,205.68,205.63,4.08779523]
[1756606807407,7.8,205.67,205.63,4.08779523]
[1756606807606,0.03125122,205.68,205.63,4.08779523]
[1756606808700,7.8,205.67,205.63,4.08779523]
[1756606808897,0.03125122,205.68,205.63,4.08779523]
[1756606809097,7.8,205.67,205.62,4.08779523]
[1756606809308,0.03125122,205.68,205.62,4.08779523]
[1756606809800,0.03125122,205.68,205.67,4.14]
[1756606811109,0.03125122,205.68,205.67,8.22779523]
[1756606812810,7.83125122,205.68,205.67,4.08779523]
[1756606813012,7.8,205.67,205.63,4.08779523]
[1756606813207,7.8,205.67,205.64,8.22779523]
[1756606813910,0.03125122,205.68,205.64,8.22779523]
[1756606813911,0.03125122,205.68,205.65,4.14]
[1756606814108,7.83125122,205.68,205.65,4.14]
[1756606815706,7.8,205.67,205.64,4.08779523]
[1756606815911,7.8,205.67,205.64,8.22779523]
[1756606816711,0.03125122,205.68,205.64,8.22779523]
[1756606816911,7.83125122,205.68,205.64,8.22779523]
[1756606817708,7.8,205.67,205.64,8.22779523]
[1756606818106,7.8,205.67,205.64,4.14]
[1756606820815,0.03125122,205.68,205.63,4.08779523]
[1756606821810,0.03125122,205.68,205.62,4.08779523]
[1756606822007,0.03125122,205.68,205.64,4.08779523]
[1756606822213,0.03125122,205.68,205.66,4.13]
[1756606822614,0.03125122,205.68,205.65,4.08779523]
[1756606823217,0.03125122,205.68,205.66,4.13]
[1756606824219,0.03125122,205.68,205.65,4.08779523]
[1756606824418,0.03125122,205.68,205.66,4.08779523]
[1756606824618,0.03125122,205.68,205.67,4.13]
[1756606829222,0.03125122,205.68,205.65,8.21779523]
[1756606829523,7.83125122,205.68,205.65,4.13]
[1756606831625,7.83125122,205.68,205.65,8.21779523]
[1756606831826,0.03125122,205.68,205.65,4.08884151]
[1756606832222,0.03125122,205.68,205.66,4.13]
[1756606832423,0.03125122,205.68,205.65,4.08884151]
[1756606832821,0.03125122,205.68,205.66,4.13]
[1756606833026,0.03125122,205.68,205.66,4.08884151]
[1756606833231,0.03125122,205.68,205.67,8.21884151]
[1756606834123,0.03125122,205.68,205.67,4.13]
[1756606835322,0.03125122,205.68,205.67,8.21935608]
[1756606835624,0.03125122,205.68,205.67,4.13]
[1756606839422,0.03125122,205.68,205.67,8.21935608]
[1756606843131,0.03125122,205.68,205.67,4.14]
[1756606844627,7.98,205.8,205.71,4.14]
[1756606844830,7.98,205.8,205.71,8.2315171]
[1756606845333,7.98,205.8,205.71,4.14]
[1756606845836,7.98,205.8,205.73,0.03601971]
[1756606849740,7.98,205.8,205.73,4.17601971]
[1756606850042,7.98,205.8,205.75,4.14]
[1756606850242,326.7,205.83,205.75,4.14]
[1756606850439,334.68,205.83,205.75,4.14]
[1756606851146,334.68,205.83,205.75,8.2315171]
[1756606851544,7.98,205.83,205.77,2.10609099]
[1756606851741,7.98,205.86,205.77,6.24609099]
[1756606852149,7.98,205.86,205.79,0.03474735]
[1756606855442,2.10609099,205.84,205.79,0.03474735]
[1756606855648,7.98,205.83,205.79,0.03474735]
[1756606861753,7.98,205.8,205.71,4.13]
[1756606861949,7.98,205.78,205.68,4.17]
[1756606863053,0.03094654,205.75,205.68,4.17]
[1756606863253,8.01094654,205.75,205.68,4.17]
[1756606863948,0.03094654,205.75,205.68,4.17]
[1756606864161,0.03094654,205.75,205.71,4.17]
[1756606864654,0.03094654,205.75,205.7,2.10609099]
[1756606864858,0.03094654,205.75,205.71,4.17]
[1756606865250,0.03094654,205.75,205.69,4.17]
[1756606867754,0.03094654,205.75,205.67,2.10609099]
[1756606868056,7.21,205.74,205.67,2.10609099]
[1756606868852,7.21,205.74,205.66,8.25005516]
[1756606869156,7.21,205.74,205.67,4.08005516]
[1756606870153,0.03094654,205.75,205.71,4.17]
[1756606870453,0.03094654,205.75,205.74,4.17]
[1756606873952,0.03094654,205.75,205.71,4.17]
[1756606874352,7.24094654,205.75,205.71,4.17]
[1756606874559,7.24094654,205.75,205.7,2.10609099]
[1756606874753,7.24094654,205.75,205.71,4.17]
[1756606875060,7.24094654,205.75,205.7,2.10609099]
[1756606875255,0.03094654,205.75,205.7,2.10609099]
[1756606875853,0.03094654,205.75,205.71,4.17]
[1756606876049,0.03094654,205.75,205.7,2.10609099]
[1756606876252,0.03094654,205.75,205.71,4.17]
[1756606876448,7.21,205.74,205.7,2.10609099]
[1756606876648,7.24094654,205.75,205.67,10.35614615]
[1756606876956,7.24094654,205.75,205.68,4.08005516]
[1756606877756,0.03094654,205.75,205.7,2.10609099]
[1756606877963,0.03094654,205.75,205.71,4.17]
[1756606878957,7.24094654,205.75,205.71,4.17]
[1756606879160,7.21,205.74,205.71,4.17]
[1756606880652,0.03094654,205.75,205.71,4.17]
[1756606880857,7.24094654,205.75,205.71,4.17]
[1756606881361,7.24094654,205.75,205.7,2.10609099]
[1756606881565,7.24094654,205.75,205.71,4.17]
[1756606883963,7.21,205.74,205.7,2.10609099]
[1756606884163,0.03094654,205.75,205.68,8.24005516]
[1756606884363,7.21,205.74,205.68,4.16]
[1756606884667,7.21,205.74,205.67,4.08005516]
[1756606884962,7.21,205.72,205.66,4.08005516]
[1756606894575,7.21,205.72,205.65,8.24005516]
[1756606895577,7.21,205.72,205.66,4.08005516]
[1756606898775,7.93418232,205.73,205.67,4.08005516]
[1756606899269,7.93418232,205.73,205.66,8.22005516]
[1756606899470,7.93418232,205.73,205.67,4.08005516]
[1756606901874,7.93418232,205.73,205.67,6.18614615]
[1756606903678,7.93418232,205.73,205.67,4.08005516]
[1756606910478,7.93418232,205.73,205.66,8.22005516]
[1756606913278,7.93418232,205.73,205.66,4.08005516]
[1756606916679,7.93418232,205.73,205.63,9.59535613]
[1756606916680,7.93418232,205.73,205.65,4.08005516]
[1756606919186,7.93418232,205.73,205.66,4.08005516]
[1756606927792,7.93418232,205.73,205.65,8.22005516]
[1756606928191,7.93418232,205.73,205.67,4.17]
[1756606928589,7.93418232,205.73,205.69,4.17]
[1756606928791,7.93418232,205.73,205.68,4.08005516]
[1756606929088,7.9,205.73,205.69,4.17]
[1756606929293,7.93106011,205.73,205.68,4.08005516]
[1756606929532,7.93106011,205.73,205.69,4.17]
[1756606930097,7.93106011,205.73,205.68,4.08005516]
[1756606930292,7.93106011,205.73,205.66,5.45535613]
[1756606930293,0.03106011,205.73,205.69,4.08005516]
[1756606930492,0.03106011,205.73,205.7,4.08005516]
[1756606931091,0.03106011,205.73,205.72,2.10609099]
[1756606931293,0.03106011,205.73,205.72,6.27609099]
[1756606931491,0.03106011,205.73,205.72,10.35614615]
[1756606932292,0.03106011,205.73,205.72,6.27609099]
[1756606932500,17.58,205.83,205.72,6.27609099]
[1756606932501,7.65,205.83,205.73,4.17]
[1756606932697,7.65,205.83,205.73,8.26380053]
[1756606932897,7.65,205.83,205.74,4.09380053]
[1756606933795,7.65,205.83,205.75,4.17]
[1756606934800,7.65,205.83,205.76,4.17]
[1756606935606,7.65,205.83,205.77,0.03095414]
[1756606939207,7.65,205.77,205.69,4.09380053]
[1756606939405,2.10609099,205.81,205.64,4.17]
[1756606939406,7.65,205.74,205.64,4.17]
[1756606940605,0.03283307,205.71,205.64,8.26380053]
[1756606942007,0.03283307,205.71,205.67,4.2]
[1756606942207,0.03283307,205.71,205.67,4.09380053]
[1756606942409,0.03283307,205.71,205.7,4.2]
[1756606943504,0.03283307,205.71,205.67,4.09380053]
[1756606943902,0.03283307,205.71,205.68,4.2]
[1756606944908,0.03283307,205.71,205.66,6.19989152]
[1756606945103,0.03283307,205.71,205.67,4.2]
[1756606945502,0.03283307,205.71,205.66,6.19989152]
[1756606946105,0.03283307,205.71,205.67,4.2]
[1756606946307,0.03283307,205.71,205.66,2.10609099]
[1756606946510,0.03283307,205.71,205.67,4.2]
[1756606946703,0.03283307,205.71,205.66,2.10609099]
[1756606946911,0.03283307,205.71,205.67,4.2]
[1756606947305,0.03283307,205.71,205.66,6.19989152]
[1756606948009,0.03283307,205.71,205.67,4.2]
[1756606948310,0.03283307,205.71,205.66,6.19989152]
[1756606948912,0.03283307,205.71,205.67,4.2]
[1756606949106,0.03283307,205.71,205.66,6.19989152]
[1756606949610,0.03283307,205.71,205.67,4.2]
[1756606950109,0.03283307,205.71,205.66,6.19989152]
[1756606950305,0.03283307,205.71,205.67,4.2]
[1756606950609,0.03283307,205.71,205.66,6.19989152]
[1756606951010,7.65,205.7,205.66,2.10609099]
[1756606951210,7.65,205.7,205.65,4.09380053]
[1756606951211,7.68283307,205.71,205.65,4.09380053]
[1756606951411,7.68283307,205.71,205.64,4.09380053]
[1756606955509,0.03283307,205.71,205.65,4.09380053]
[1756606955712,0.03283307,205.71,205.59,89.00609099]
[1756606955713,0.03283307,205.71,205.67,4.09380053]
[1756606956102,0.03283307,205.71,205.69,2.10609099]
[1756606956310,0.03283307,205.71,205.7,4.2]
[1756606956610,7.65,205.8,205.71,4.2]
[1756606956803,7.65,205.8,205.72,2.10609099]
[1756606958104,7.65,205.8,205.74,0.03418895]
[1756606963017,326.7,205.86,205.75,4.19]
[1756606963314,7.46,205.85,205.75,4.19]
[1756606964118,7.46,205.85,205.78,0.03415911]
[1756606970319,2.10609099,205.92,205.8,4.19]
[1756606970525,7.46,205.91,205.8,4.19]
[1756606970725,25.34,205.9,205.8,4.19]
[1756606971223,7.46,205.89,205.82,2.10609099]
[1756606971625,7.46,205.89,205.83,0.0333206]
[1756606987835,7.46,205.89,205.84,4.19]
[1756606988436,7.46,205.89,205.83,0.0333206]
[1756606988637,7.18,205.94,205.83,4.2233206]
[1756606995047,7.18,205.94,205.83,0.0333206]
[1756606995848,7.18,205.92,205.83,0.0333206]
[1756606996346,7.18,205.92,205.8,6.29609099]
[1756606996643,7.18,205.92,205.85,0.03074652]
[1756607007456,7.18,205.87,205.85,0.03074652]
[1756607008557,1.34587974,205.88,205.85,0.03074652]
[1756607009062,7.18,205.87,205.85,0.03074652]
[1756607009462,7.18,205.9,205.85,0.03074652]
[1756607010859,2.1029138,205.88,205.85,0.03074652]
[1756607011060,7.18,205.87,205.85,0.03074652]
[1756607011962,7.18,205.87,205.78,4.22]
[1756607012356,7.18,205.87,205.78,8.31380053]
[1756607025466,7.18,205.87,205.79,4.22]
[1756607027769,7.18,205.87,205.79,8.31380053]
[1756607029273,8.5260287,205.87,205.79,9.65982923]
[1756607033478,7.18,205.87,205.8,4.22]
[1756607033772,7.18,205.87,205.81,1.3460287]
[1756607035277,7.18,205.87,205.8,4.22]
[1756607035478,7.63,205.85,205.78,4.09380053]
[1756607035678,7.63,205.83,205.77,5.5660287]
[1756607036477,0.03181438,205.82,205.77,1.3460287]
[1756607036679,7.66181438,205.82,205.78,4.22]
[1756607036879,7.66181438,205.82,205.77,1.3460287]
[1756607037178,0.03181438,205.82,205.77,5.5660287]
[1756607037379,7.63,205.81,205.77,4.22]
[1756607038475,7.63,205.81,205.76,4.09380053]
[1756607039975,7.63,205.81,205.77,4.22]
[1756607040171,7.63,205.81,205.76,4.09380053]
[1756607040379,7.63,205.81,205.77,4.22]
[1756607040675,7.63,205.81,205.76,4.09380053]
[1756607040879,7.63,205.81,205.75,4.09380053]
[1756607041580,7.63,205.81,205.74,4.09380053]
[1756607043081,7.63,205.81,205.72,4.09380053]
[1756607043577,2.10383158,205.8,205.72,4.09380053]
[1756607043783,7.66401516,205.79,205.71,4.09380053]
[1756607044277,7.66401516,205.79,205.7,4.22]
[1756607044278,7.66401516,205.79,205.7,8.31380053]
[1756607047182,7.66401516,205.79,205.7,4.22]
[1756607054285,7.66401516,205.79,205.7,8.31380053]
[1756607054587,7.66401516,205.79,205.71,4.22]
[1756607059292,7.66401516,205.79,205.73,1.3469004]
[1756607059490,7.66401516,205.79,205.74,4.22]
[1756607059690,7.66401516,205.79,205.73,1.3469004]
[1756607059991,7.66401516,205.79,205.76,4.22]
[1756607062095,7.48,205.78,205.76,4.22]
[1756607063290,0.03401516,205.79,205.76,4.22]
[1756607063485,0.03401516,205.79,205.78,4.22]
[1756607063690,7.51401516,205.79,205.77,1.3469004]
[1756607063991,7.51401516,205.79,205.75,4.22]
[1756607064297,7.51401516,205.79,205.76,5.5669004]
[1756607064893,7.51401516,205.79,205.77,4.22]
[1756607066897,7.48,205.78,205.75,1.3469004]
[1756607067086,0.03401516,205.79,205.75,1.3469004]
[1756607067589,7.48,205.78,205.75,1.3469004]
[1756607067989,0.03401516,205.79,205.75,1.3469004]
[1756607068191,7.48,205.78,205.75,1.3469004]
[1756607068591,7.48,205.78,205.72,8.31380053]